[Event "*** Titled Tuesday Blitz"]
[Site "Chess.com"]
[Date "2021.04.20"]
[Round "1"]
[White "ErikRonka"]
[Black "Sanan_Sjugirov"]
[Result "0-1"]
[WhiteElo "2459"]
[BlackElo "2917"]
[TimeControl "180+1"]
[EndTime "10:08:26 PDT"]
[Termination "Sanan_Sjugirov won by resignation"]

1. d4 {[%clk 0:02:49.5]} 1... Nf6 {[%clk 0:02:55.7]} 2. c4 {[%clk 0:02:49.4]}
2... c5 {[%clk 0:02:54.2]} 3. d5 {[%clk 0:02:44.2]} 3... e6 {[%clk 0:02:52.9]}
4. Nc3 {[%clk 0:02:42.8]} 4... exd5 {[%clk 0:02:52.2]} 5. cxd5 {[%clk
0:02:43.7]} 5... d6 {[%clk 0:02:52.5]} 6. e4 {[%clk 0:02:44.1]} 6... g6 {[%clk
0:02:49.5]} 7. Nge2 {[%clk 0:02:44.6]} 7... Bg7 {[%clk 0:02:47.7]} 8. Ng3 {[%clk
0:02:45]} 8... O-O {[%clk 0:02:46.3]} 9. Be2 {[%clk 0:02:45.5]} 9... Re8 {[%clk
0:02:41]} 10. O-O {[%clk 0:02:44.8]} 10... a6 {[%clk 0:02:27.4]} 11. a4 {[%clk
0:02:43.4]} 11... h5 {[%clk 0:02:22.5]} 12. Bg5 {[%clk 0:02:40.8]} 12... Qb6
{[%clk 0:02:21.8]} 13. Qd2 {[%clk 0:02:34.6]} 13... Nbd7 {[%clk 0:02:19.4]} 14.
a5 {[%clk 0:02:18.6]} 14... Qc7 {[%clk 0:02:18.5]} 15. Rfc1 {[%clk 0:02:17.7]}
15... Nh7 {[%clk 0:02:16.5]} 16. Be3 {[%clk 0:02:16.9]} 16... h4 {[%clk
0:02:15.1]} 17. Nh1 {[%clk 0:02:16.8]} 17... h3 {[%clk 0:02:13.2]} 18. g3 {[%clk
0:02:14.1]} 18... Ne5 {[%clk 0:02:10.9]} 19. f3 {[%clk 0:02:10.7]} 19... f5
{[%clk 0:02:10.3]} 20. Nf2 {[%clk 0:02:10]} 20... Nf6 {[%clk 0:02:04.2]} 21. Kh1
{[%clk 0:02:04.8]} 21... fxe4 {[%clk 0:01:56.4]} 22. Nfxe4 {[%clk 0:02:01.7]}
22... Nxe4 {[%clk 0:01:43.3]} 23. Nxe4 {[%clk 0:02:02.6]} 23... Bf5 {[%clk
0:01:20.1]} 24. Ng5 {[%clk 0:01:55.9]} 24... Qe7 {[%clk 0:01:18.5]} 25. Ne6
{[%clk 0:01:33.7]} 25... Bxe6 {[%clk 0:01:14.7]} 26. dxe6 {[%clk 0:01:34.6]}
26... Qxe6 {[%clk 0:01:14.2]} 27. Bf4 {[%clk 0:00:45.4]} 27... Rad8 {[%clk
0:01:01]} 28. Qe3 {[%clk 0:00:35]} 28... Kh7 {[%clk 0:00:57.6]} 29. Bf1 {[%clk
0:00:34.9]} 29... Qf5 {[%clk 0:00:47]} 30. Qe4 {[%clk 0:00:18.9]} 30... Qxe4
{[%clk 0:00:41.8]} 31. fxe4 {[%clk 0:00:19.8]} 31... Ng4 {[%clk 0:00:42.4]} 32.
Rc2 {[%clk 0:00:17.8]} 32... Bd4 {[%clk 0:00:37.6]} 33. Bxh3 {[%clk 0:00:15.8]}
33... Nf2+ {[%clk 0:00:37.8]} 34. Kg2 {[%clk 0:00:16.3]} 34... Nxh3 {[%clk
0:00:37.8]} 35. Kxh3 {[%clk 0:00:17.2]} 35... Rxe4 {[%clk 0:00:37.7]} 36. Rf1
{[%clk 0:00:16.3]} 36... Kg7 {[%clk 0:00:25.2]} 37. b4 {[%clk 0:00:15.1]} 37...
Rd7 {[%clk 0:00:20.1]} 38. bxc5 {[%clk 0:00:08.1]} 38... dxc5 {[%clk 0:00:21]}
39. Kg4 {[%clk 0:00:06]} 39... Rde7 {[%clk 0:00:14.2]} 40. h4 {[%clk 0:00:06]}
40... Re2 {[%clk 0:00:08.1]} 41. Rc4 {[%clk 0:00:02.2]} 41... Ra2 {[%clk
0:00:05.9]} 42. h5 {[%clk 0:00:02.2]} 42... gxh5+ {[%clk 0:00:05.9]} 43. Kxh5
{[%clk 0:00:03.1]} 43... Rxa5 {[%clk 0:00:02.7]} 44. Bh6+ {[%clk 0:00:03.6]}
44... Kh7 {[%clk 0:00:03.1]} 45. Rc2 {[%clk 0:00:04.5]} 45... c4+ {[%clk
0:00:03.1]} 46. Bg5 {[%clk 0:00:05.4]} 46... Rg7 {[%clk 0:00:02.3]} 47. Rf4
{[%clk 0:00:01.8]} 47... Raxg5+ {[%clk 0:00:03]} 48. Kh4 {[%clk 0:00:02.7]}
48... Be5 {[%clk 0:00:02.5]} 49. Rfxc4 {[%clk 0:00:03.6]} 49... Bxg3+ {[%clk
0:00:02.8]} 50. Kh3 {[%clk 0:00:04.4]} 50... Be5 {[%clk 0:00:03.6]} 51. Rh4+
{[%clk 0:00:04.3]} 51... Kg6 {[%clk 0:00:04.1]} 52. Re4 {[%clk 0:00:04.6]} 52...
Rh5+ {[%clk 0:00:04.1]} 53. Kg4 {[%clk 0:00:04.3]} 53... Rg5+ {[%clk 0:00:04.6]}
54. Kf3 {[%clk 0:00:05.2]} 54... Rf7+ {[%clk 0:00:05.1]} 55. Ke2 {[%clk
0:00:04.5]} 55... Rg2+ {[%clk 0:00:05.3]} 56. Kd3 {[%clk 0:00:05.1]} 56... Rd7+
{[%clk 0:00:05.3]} 57. Kc4 {[%clk 0:00:03.5]} 57... Rc7+ {[%clk 0:00:05.4]} 58.
Kb3 {[%clk 0:00:04.4]} 58... Rgxc2 {[%clk 0:00:05.6]} 59. Rxe5 {[%clk
0:00:04.7]} 59... R2c6 {[%clk 0:00:05.8]} 60. Rd5 {[%clk 0:00:04.7]} 60... Kf7
{[%clk 0:00:06.7]} 61. Rd4 {[%clk 0:00:04.9]} 61... Ke7 {[%clk 0:00:07.6]} 62.
Re4+ {[%clk 0:00:05.1]} 62... Kd7 {[%clk 0:00:07.8]} 63. Rd4+ {[%clk 0:00:05.3]}
63... Kc8 {[%clk 0:00:08.7]} 0-1

[Event "*** Titled Tuesday Blitz"]
[Site "Chess.com"]
[Date "2021.04.20"]
[Round "1"]
[White "GM_dmitrij"]
[Black "PlotnikovPavel"]
[Result "1-0"]
[WhiteElo "2904"]
[BlackElo "2458"]
[TimeControl "180+1"]
[EndTime "10:08:28 PDT"]
[Termination "GM_dmitrij won by checkmate"]

1. e4 {[%clk 0:03:00.9]} 1... e5 {[%clk 0:02:59]} 2. Nf3 {[%clk 0:02:59.9]} 2...
Nc6 {[%clk 0:02:58.4]} 3. d4 {[%clk 0:03:00.4]} 3... exd4 {[%clk 0:02:58.5]} 4.
Nxd4 {[%clk 0:03:01.3]} 4... Bc5 {[%clk 0:02:57.9]} 5. Be3 {[%clk 0:02:59.5]}
5... Qf6 {[%clk 0:02:57.6]} 6. c3 {[%clk 0:02:59.2]} 6... Nge7 {[%clk
0:02:57.7]} 7. Bb5 {[%clk 0:02:51.7]} 7... d6 {[%clk 0:02:37.1]} 8. O-O {[%clk
0:02:41.4]} 8... O-O {[%clk 0:02:36.4]} 9. Re1 {[%clk 0:02:40.2]} 9... Qg6
{[%clk 0:02:26.6]} 10. Nd2 {[%clk 0:02:32.6]} 10... Bd7 {[%clk 0:02:19.7]} 11.
Bf1 {[%clk 0:02:26.3]} 11... f5 {[%clk 0:02:17.3]} 12. Nxc6 {[%clk 0:02:19.4]}
12... Bxc6 {[%clk 0:02:14.9]} 13. Bxc5 {[%clk 0:02:18.7]} 13... dxc5 {[%clk
0:02:15.4]} 14. exf5 {[%clk 0:01:43.1]} 14... Nxf5 {[%clk 0:02:15.1]} 15. Nc4
{[%clk 0:01:42.6]} 15... Rad8 {[%clk 0:01:55.2]} 16. Qc2 {[%clk 0:01:41.8]}
16... Nh4 {[%clk 0:01:44.1]} 17. Qxg6 {[%clk 0:01:41]} 17... Nxg6 {[%clk
0:01:45]} 18. Na5 {[%clk 0:01:36.9]} 18... Rd2 {[%clk 0:01:18.2]} 19. Nxc6
{[%clk 0:01:30.3]} 19... bxc6 {[%clk 0:01:18.7]} 20. Bc4+ {[%clk 0:01:29.8]}
20... Kh8 {[%clk 0:01:17.8]} 21. Re2 {[%clk 0:01:30.7]} 21... Rfd8 {[%clk
0:01:16.2]} 22. Kf1 {[%clk 0:01:11.4]} 22... Nf4 {[%clk 0:01:11]} 23. Rxd2
{[%clk 0:01:04.1]} 23... Rxd2 {[%clk 0:01:10]} 24. Re1 {[%clk 0:01:04.9]} 24...
h6 {[%clk 0:01:05.9]} 25. g3 {[%clk 0:01:05.1]} 25... Nh3 {[%clk 0:00:55.2]} 26.
Re2 {[%clk 0:01:04.3]} 26... Rxe2 {[%clk 0:00:28.7]} 27. Kxe2 {[%clk 0:01:05.2]}
27... Ng5 {[%clk 0:00:24.2]} 28. Ke3 {[%clk 0:00:58.5]} 28... g6 {[%clk
0:00:22.3]} 29. f4 {[%clk 0:00:51.4]} 29... Nh7 {[%clk 0:00:21.4]} 30. Ke4
{[%clk 0:00:45.2]} 30... Kg7 {[%clk 0:00:21.5]} 31. Ke5 {[%clk 0:00:44.9]} 31...
Nf8 {[%clk 0:00:20.5]} 32. g4 {[%clk 0:00:36.4]} 32... Nd7+ {[%clk 0:00:20.1]}
33. Ke6 {[%clk 0:00:32.5]} 33... Nb6 {[%clk 0:00:20.6]} 34. b3 {[%clk 0:00:30]}
34... a5 {[%clk 0:00:16.4]} 35. a4 {[%clk 0:00:28.8]} 35... Nc8 {[%clk
0:00:14.6]} 36. Kd7 {[%clk 0:00:24.5]} 36... Nd6 {[%clk 0:00:14.9]} 37. Kxc7
{[%clk 0:00:19.2]} 37... Ne4 {[%clk 0:00:14]} 38. Kxc6 {[%clk 0:00:19.4]} 38...
Kf6 {[%clk 0:00:14.1]} 39. Kb5 {[%clk 0:00:17.5]} 39... Nxc3+ {[%clk 0:00:13.3]}
40. Kxa5 {[%clk 0:00:18.1]} 40... Ne4 {[%clk 0:00:12.7]} 41. Kb6 {[%clk
0:00:17.9]} 41... g5 {[%clk 0:00:12.2]} 42. f5 {[%clk 0:00:17.6]} 42... h5
{[%clk 0:00:09.9]} 43. gxh5 {[%clk 0:00:16.3]} 43... Nd6 {[%clk 0:00:08.1]} 44.
a5 {[%clk 0:00:15.8]} 44... Kxf5 {[%clk 0:00:07.4]} 45. a6 {[%clk 0:00:15.9]}
45... g4 {[%clk 0:00:06.6]} 46. Kc6 {[%clk 0:00:15.9]} 46... Nc8 {[%clk
0:00:06.5]} 47. Kc7 {[%clk 0:00:16.2]} 47... Na7 {[%clk 0:00:06.6]} 48. Kb7
{[%clk 0:00:16.3]} 48... g3 {[%clk 0:00:06.6]} 49. hxg3 {[%clk 0:00:16.1]} 49...
Kg5 {[%clk 0:00:07.2]} 50. Kxa7 {[%clk 0:00:16.1]} 50... Kh6 {[%clk 0:00:07.8]}
51. Kb6 {[%clk 0:00:17]} 51... Kxh5 {[%clk 0:00:08.3]} 52. Kb5 {[%clk
0:00:17.9]} 52... Kg4 {[%clk 0:00:08.7]} 53. a7 {[%clk 0:00:18.4]} 53... Kxg3
{[%clk 0:00:08.2]} 54. a8=Q {[%clk 0:00:18.5]} 54... Kf2 {[%clk 0:00:09.1]} 55.
Kxc5 {[%clk 0:00:18.4]} 55... Ke3 {[%clk 0:00:10]} 56. Qd5 {[%clk 0:00:17.3]}
56... Kf4 {[%clk 0:00:09.2]} 57. Kd4 {[%clk 0:00:17.2]} 57... Kg4 {[%clk
0:00:10]} 58. Ke4 {[%clk 0:00:17]} 58... Kg3 {[%clk 0:00:10.9]} 59. Qg5+ {[%clk
0:00:16.1]} 59... Kf2 {[%clk 0:00:10.6]} 60. Bd3 {[%clk 0:00:11.8]} 60... Ke1
{[%clk 0:00:08.5]} 61. Qg1+ {[%clk 0:00:12.2]} 61... Kd2 {[%clk 0:00:08.5]} 62.
Qf2+ {[%clk 0:00:11.7]} 62... Kc3 {[%clk 0:00:08.4]} 63. Qc2+ {[%clk 0:00:12.2]}
63... Kb4 {[%clk 0:00:08.9]} 64. Kd4 {[%clk 0:00:11.3]} 64... Ka3 {[%clk
0:00:09.8]} 65. b4 {[%clk 0:00:10.5]} 65... Kxb4 {[%clk 0:00:09.6]} 66. Qb2+
{[%clk 0:00:10.8]} 66... Ka5 {[%clk 0:00:08.5]} 67. Qb5# {[%clk 0:00:09.5]} 1-0

[Event "*** Titled Tuesday Blitz"]
[Site "Chess.com"]
[Date "2021.04.20"]
[Round "1"]
[White "A-S-00"]
[Black "Iskusnyh"]
[Result "0-1"]
[WhiteElo "2333"]
[BlackElo "2637"]
[TimeControl "180+1"]
[EndTime "10:08:29 PDT"]
[Termination "Iskusnyh won on time"]

1. d4 {[%clk 0:02:58.4]} 1... d5 {[%clk 0:02:46.3]} 2. Nf3 {[%clk 0:02:57.7]}
2... Nf6 {[%clk 0:02:45.3]} 3. c4 {[%clk 0:02:56.5]} 3... e6 {[%clk 0:02:27.5]}
4. g3 {[%clk 0:02:52.2]} 4... Be7 {[%clk 0:02:23.3]} 5. Bg2 {[%clk 0:02:51.1]}
5... O-O {[%clk 0:02:19.9]} 6. O-O {[%clk 0:02:50.1]} 6... c6 {[%clk 0:02:20.3]}
7. Qc2 {[%clk 0:02:46.4]} 7... Nbd7 {[%clk 0:02:20.2]} 8. Nbd2 {[%clk
0:02:45.2]} 8... b6 {[%clk 0:02:19.3]} 9. e4 {[%clk 0:02:44.5]} 9... Bb7 {[%clk
0:02:17.5]} 10. e5 {[%clk 0:02:39.5]} 10... Ne8 {[%clk 0:02:16.8]} 11. Rd1
{[%clk 0:02:38.5]} 11... Rc8 {[%clk 0:02:11.3]} 12. b3 {[%clk 0:02:26]} 12... c5
{[%clk 0:02:08.8]} 13. Bb2 {[%clk 0:02:19.8]} 13... Nc7 {[%clk 0:01:45.3]} 14.
Rac1 {[%clk 0:02:13.7]} 14... Na6 {[%clk 0:01:35.1]} 15. Qb1 {[%clk 0:02:09.7]}
15... cxd4 {[%clk 0:01:23.9]} 16. Bxd4 {[%clk 0:02:06.9]} 16... Ndc5 {[%clk
0:01:19.8]} 17. h4 {[%clk 0:01:41.2]} 17... Nb4 {[%clk 0:01:12.9]} 18. a3 {[%clk
0:01:31.7]} 18... Nc6 {[%clk 0:01:07.6]} 19. Bb2 {[%clk 0:01:27.9]} 19... a5
{[%clk 0:01:05.4]} 20. cxd5 {[%clk 0:01:24.3]} 20... exd5 {[%clk 0:01:03.4]} 21.
Nd4 {[%clk 0:00:21]} 21... Nxe5 {[%clk 0:00:54]} 22. Nf5 {[%clk 0:00:19.7]}
22... Bf6 {[%clk 0:00:53.4]} 23. Qa1 {[%clk 0:00:16]} 23... Re8 {[%clk 0:00:48]}
24. Nf3 {[%clk 0:00:12.8]} 24... Nxf3+ {[%clk 0:00:46.9]} 25. Bxf3 {[%clk
0:00:13.1]} 25... Nxb3 {[%clk 0:00:22.7]} 26. Bxf6 {[%clk 0:00:13.1]} 26... Nxa1
{[%clk 0:00:20.6]} 27. Bxd8 {[%clk 0:00:12.5]} 27... Rxc1 {[%clk 0:00:18.6]} 28.
Rxc1 {[%clk 0:00:13.4]} 28... Nb3 {[%clk 0:00:17.3]} 29. Rc7 {[%clk 0:00:11.9]}
29... Rxd8 {[%clk 0:00:14.1]} 30. Rxb7 {[%clk 0:00:11.3]} 30... d4 {[%clk
0:00:13.5]} 31. Ne7+ {[%clk 0:00:10]} 31... Kf8 {[%clk 0:00:12.7]} 32. Nc6
{[%clk 0:00:10.3]} 32... Rc8 {[%clk 0:00:11.2]} 33. Rb8 {[%clk 0:00:09.1]} 33...
Rxb8 {[%clk 0:00:10.3]} 34. Nxb8 {[%clk 0:00:09.5]} 34... d3 {[%clk 0:00:11]}
35. Bd1 {[%clk 0:00:09]} 35... Nc5 {[%clk 0:00:09]} 36. Nc6 {[%clk 0:00:08.1]}
36... Ne4 {[%clk 0:00:08.6]} 37. Kf1 {[%clk 0:00:08.1]} 37... Nc3 {[%clk
0:00:08.8]} 38. Ke1 {[%clk 0:00:08.5]} 38... Nb1 {[%clk 0:00:08.7]} 39. a4
{[%clk 0:00:07.4]} 39... Nc3 {[%clk 0:00:08.4]} 40. Nd4 {[%clk 0:00:06.8]} 40...
Ke7 {[%clk 0:00:07.9]} 41. Nb5 {[%clk 0:00:05.5]} 41... Ne4 {[%clk 0:00:04.5]}
42. Nd4 {[%clk 0:00:04]} 42... Nc3 {[%clk 0:00:03.9]} 43. Nf3 {[%clk 0:00:02.1]}
43... Kd6 {[%clk 0:00:03.7]} 44. Kd2 {[%clk 0:00:02.1]} 44... Ne4+ {[%clk
0:00:03.6]} 45. Kxd3 {[%clk 0:00:02]} 45... Nxf2+ {[%clk 0:00:04.3]} 46. Ke2
{[%clk 0:00:02.9]} 46... Ne4 {[%clk 0:00:04]} 47. g4 {[%clk 0:00:02.5]} 47...
Nc3+ {[%clk 0:00:04.2]} 48. Kd3 {[%clk 0:00:02.4]} 48... Ne4 {[%clk 0:00:04.7]}
49. Kxe4 {[%clk 0:00:01.2]} 49... Kc5 {[%clk 0:00:05.2]} 50. Bc2 {[%clk
0:00:01.8]} 50... Kb4 {[%clk 0:00:05.5]} 51. Ne5 {[%clk 0:00:02.1]} 51... Kc3
{[%clk 0:00:05.7]} 52. Nd7 {[%clk 0:00:01.8]} 52... Kxc2 {[%clk 0:00:06]} 0-1

[Event "*** Titled Tuesday Blitz"]
[Site "Chess.com"]
[Date "2021.04.20"]
[Round "1"]
[White "enriquetejedor"]
[Black "Mbneu"]
[Result "1/2-1/2"]
[WhiteElo "2629"]
[BlackElo "2340"]
[TimeControl "180+1"]
[EndTime "10:08:32 PDT"]
[Termination "Game drawn by repetition"]

1. e4 {[%clk 0:02:57]} 1... c5 {[%clk 0:02:59.3]} 2. Nf3 {[%clk 0:02:51.5]} 2...
Nf6 {[%clk 0:02:59.7]} 3. Nc3 {[%clk 0:02:49.5]} 3... d5 {[%clk 0:02:59.3]} 4.
exd5 {[%clk 0:02:32.1]} 4... Nxd5 {[%clk 0:03:00.2]} 5. Bc4 {[%clk 0:02:09.5]}
5... Nb6 {[%clk 0:02:59]} 6. Bb5+ {[%clk 0:02:07.6]} 6... Bd7 {[%clk 0:02:57.9]}
7. a4 {[%clk 0:02:05.7]} 7... e6 {[%clk 0:02:45.3]} 8. O-O {[%clk 0:02:03.9]}
8... Be7 {[%clk 0:02:44]} 9. d4 {[%clk 0:02:00.1]} 9... cxd4 {[%clk 0:02:40.1]}
10. Qxd4 {[%clk 0:01:56.4]} 10... O-O {[%clk 0:02:36.7]} 11. Qg4 {[%clk
0:01:45.4]} 11... Bc6 {[%clk 0:02:24]} 12. Rd1 {[%clk 0:01:26.5]} 12... Qe8
{[%clk 0:02:14]} 13. Bh6 {[%clk 0:01:05.2]} 13... Bf6 {[%clk 0:02:08.9]} 14. Ne4
{[%clk 0:00:58.8]} 14... Qe7 {[%clk 0:02:07.2]} 15. a5 {[%clk 0:00:39.7]} 15...
Nd5 {[%clk 0:01:56.6]} 16. Bxc6 {[%clk 0:00:32.5]} 16... Nxc6 {[%clk 0:01:55.9]}
17. c4 {[%clk 0:00:32.3]} 17... Bxb2 {[%clk 0:01:20.8]} 18. cxd5 {[%clk
0:00:27.3]} 18... f5 {[%clk 0:01:19.9]} 19. d6 {[%clk 0:00:06.7]} 19... fxg4
{[%clk 0:01:06]} 20. dxe7 {[%clk 0:00:06.7]} 20... Nxe7 {[%clk 0:01:05.9]} 21.
Rab1 {[%clk 0:00:04.3]} 21... Ba3 {[%clk 0:00:54.3]} 22. Rxb7 {[%clk 0:00:02.3]}
22... gxf3 {[%clk 0:00:52.7]} 23. Bg5 {[%clk 0:00:02]} 23... Nd5 {[%clk
0:00:35.5]} 24. Rd3 {[%clk 0:00:02.2]} 24... Rab8 {[%clk 0:00:25.1]} 25. Rxb8
{[%clk 0:00:02.1]} 25... Rxb8 {[%clk 0:00:24.2]} 26. gxf3 {[%clk 0:00:02.3]}
26... Bb4 {[%clk 0:00:20.4]} 27. a6 {[%clk 0:00:02.5]} 27... Rb6 {[%clk
0:00:20]} 28. Be3 {[%clk 0:00:02.7]} 28... Rxa6 {[%clk 0:00:19.5]} 29. Bc5
{[%clk 0:00:02.3]} 29... Bxc5 {[%clk 0:00:17.8]} 30. Rb3 {[%clk 0:00:02.5]}
30... Bf8 {[%clk 0:00:16.5]} 31. Rb8 {[%clk 0:00:02.4]} 31... Rb6 {[%clk
0:00:15.3]} 32. Ra8 {[%clk 0:00:02.3]} 32... Nf4 {[%clk 0:00:15.3]} 33. h4
{[%clk 0:00:02.3]} 33... Rb1+ {[%clk 0:00:14.4]} 34. Kh2 {[%clk 0:00:02.7]}
34... Ra1 {[%clk 0:00:12.3]} 35. Kg3 {[%clk 0:00:03.2]} 35... Nh5+ {[%clk
0:00:11.4]} 36. Kh2 {[%clk 0:00:02.2]} 36... Nf6 {[%clk 0:00:11.9]} 37. Ng5
{[%clk 0:00:02.6]} 37... Re1 {[%clk 0:00:10.8]} 38. Rxa7 {[%clk 0:00:02.1]}
38... h6 {[%clk 0:00:11]} 39. Nh3 {[%clk 0:00:02.1]} 39... Nd5 {[%clk
0:00:10.3]} 40. Ra6 {[%clk 0:00:01.9]} 40... Bc5 {[%clk 0:00:08]} 41. Ra8+
{[%clk 0:00:01.8]} 41... Kh7 {[%clk 0:00:07.7]} 42. Rc8 {[%clk 0:00:02.7]} 42...
Bd4 {[%clk 0:00:05.6]} 43. Rc4 {[%clk 0:00:03.3]} 43... Bf6 {[%clk 0:00:05.9]}
44. Kg2 {[%clk 0:00:02.8]} 44... Re2 {[%clk 0:00:05.7]} 45. Kf1 {[%clk
0:00:02.3]} 45... Ra2 {[%clk 0:00:05.2]} 46. h5 {[%clk 0:00:02.7]} 46... Ra1+
{[%clk 0:00:04.4]} 47. Kg2 {[%clk 0:00:02.8]} 47... Ra2 {[%clk 0:00:04.7]} 48.
Re4 {[%clk 0:00:03.3]} 48... Nc3 {[%clk 0:00:04.1]} 49. Rxe6 {[%clk 0:00:03.4]}
49... Ne2 {[%clk 0:00:04.1]} 50. f4 {[%clk 0:00:02.8]} 50... Ra4 {[%clk
0:00:03.3]} 51. Rxe2 {[%clk 0:00:02.8]} 51... Ra3 {[%clk 0:00:02.3]} 52. f3
{[%clk 0:00:03]} 52... Ra4 {[%clk 0:00:02.7]} 53. Kg3 {[%clk 0:00:03.4]} 53...
Rb4 {[%clk 0:00:03.2]} 54. Nf2 {[%clk 0:00:03.8]} 54... Rb2 {[%clk 0:00:03.3]}
55. Re4 {[%clk 0:00:02.8]} 55... Bh4+ {[%clk 0:00:01.3]} 56. Kxh4 {[%clk
0:00:02.9]} 56... Rxf2 {[%clk 0:00:01.8]} 57. Kg3 {[%clk 0:00:03.4]} 57... Rf1
{[%clk 0:00:01.9]} 58. f5 {[%clk 0:00:03.7]} 58... Kg8 {[%clk 0:00:01.4]} 59.
Re7 {[%clk 0:00:03.6]} 59... Kf8 {[%clk 0:00:01.8]} 60. Rb7 {[%clk 0:00:03.9]}
60... Rg1+ {[%clk 0:00:02.1]} 61. Kf4 {[%clk 0:00:04.3]} 61... Rg5 {[%clk
0:00:02.7]} 62. Rb8+ {[%clk 0:00:04]} 62... Kf7 {[%clk 0:00:02.7]} 63. Rb7+
{[%clk 0:00:04.7]} 63... Kf8 {[%clk 0:00:03.1]} 64. Rb8+ {[%clk 0:00:02.3]}
64... Kf7 {[%clk 0:00:03]} 65. Rb7+ {[%clk 0:00:02]} 65... Kf8 {[%clk
0:00:03.4]} 1/2-1/2

[Event "*** Titled Tuesday Blitz"]
[Site "Chess.com"]
[Date "2021.04.20"]
[Round "1"]
[White "Gulkov_Igor"]
[Black "topin8"]
[Result "1-0"]
[WhiteElo "2533"]
[BlackElo "2195"]
[TimeControl "180+1"]
[EndTime "10:08:34 PDT"]
[Termination "Gulkov_Igor won on time"]

1. Nf3 {[%clk 0:03:00.9]} 1... Nf6 {[%clk 0:02:55.2]} 2. c4 {[%clk 0:03:00.1]}
2... e6 {[%clk 0:02:54.4]} 3. Nc3 {[%clk 0:02:59.6]} 3... d5 {[%clk 0:02:53.7]}
4. d4 {[%clk 0:02:59.4]} 4... Bb4 {[%clk 0:02:49]} 5. Bg5 {[%clk 0:02:58.4]}
5... h6 {[%clk 0:02:45.3]} 6. Bxf6 {[%clk 0:02:57.5]} 6... Qxf6 {[%clk
0:02:44.8]} 7. e3 {[%clk 0:02:58]} 7... O-O {[%clk 0:02:42.6]} 8. Bd3 {[%clk
0:02:55.5]} 8... dxc4 {[%clk 0:02:33.7]} 9. Bxc4 {[%clk 0:02:54.4]} 9... c5
{[%clk 0:02:34.1]} 10. O-O {[%clk 0:02:53.1]} 10... cxd4 {[%clk 0:02:17]} 11.
Qxd4 {[%clk 0:02:52.1]} 11... Nc6 {[%clk 0:02:04.1]} 12. Qxf6 {[%clk 0:02:50.9]}
12... gxf6 {[%clk 0:02:05]} 13. Rac1 {[%clk 0:02:49.6]} 13... Bd7 {[%clk
0:01:47.4]} 14. Rfd1 {[%clk 0:02:47.4]} 14... Rfd8 {[%clk 0:01:45]} 15. Ne4
{[%clk 0:02:43.2]} 15... Be7 {[%clk 0:01:31.3]} 16. a3 {[%clk 0:02:17.2]} 16...
Be8 {[%clk 0:01:18.2]} 17. g4 {[%clk 0:01:48.3]} 17... a6 {[%clk 0:01:01.6]} 18.
Ba2 {[%clk 0:01:37.9]} 18... Rxd1+ {[%clk 0:00:58.6]} 19. Rxd1 {[%clk
0:01:37.4]} 19... Rd8 {[%clk 0:00:59.5]} 20. Rxd8 {[%clk 0:01:36.4]} 20... Nxd8
{[%clk 0:00:57.4]} 21. h3 {[%clk 0:01:35.9]} 21... Bc6 {[%clk 0:00:57.2]} 22.
Ned2 {[%clk 0:01:34.4]} 22... b5 {[%clk 0:00:43.1]} 23. Nd4 {[%clk 0:01:33.7]}
23... Bd7 {[%clk 0:00:42.9]} 24. f4 {[%clk 0:01:33]} 24... Nb7 {[%clk
0:00:37.8]} 25. Kf2 {[%clk 0:01:27.9]} 25... Nc5 {[%clk 0:00:33.3]} 26. b4
{[%clk 0:01:00.9]} 26... Na4 {[%clk 0:00:20.5]} 27. Bb3 {[%clk 0:00:58.6]} 27...
Nb6 {[%clk 0:00:19.6]} 28. Ke2 {[%clk 0:00:56.1]} 28... Kg7 {[%clk 0:00:18.8]}
29. Kd3 {[%clk 0:00:55.7]} 29... Kg6 {[%clk 0:00:13.8]} 30. Bc2 {[%clk
0:00:54.1]} 30... Kg7 {[%clk 0:00:13]} 31. Bb3 {[%clk 0:00:52.4]} 31... Kg6
{[%clk 0:00:12.9]} 32. Ne4 {[%clk 0:00:40.8]} 32... e5 {[%clk 0:00:12.6]} 33.
f5+ {[%clk 0:00:39.4]} 33... Kg7 {[%clk 0:00:10.4]} 34. Ne2 {[%clk 0:00:36.9]}
34... h5 {[%clk 0:00:10.5]} 35. N2c3 {[%clk 0:00:36.4]} 35... hxg4 {[%clk
0:00:10.1]} 36. hxg4 {[%clk 0:00:36.6]} 36... Bc8 {[%clk 0:00:10.4]} 37. Nd5
{[%clk 0:00:36.3]} 37... Bd8 {[%clk 0:00:08]} 38. Nc5 {[%clk 0:00:31]} 38... Kf8
{[%clk 0:00:04.6]} 39. Ne4 {[%clk 0:00:24.9]} 39... Kg7 {[%clk 0:00:04]} 40. Nd6
{[%clk 0:00:24.2]} 40... Bd7 {[%clk 0:00:04.4]} 41. Nxb6 {[%clk 0:00:20.1]}
41... Bxb6 {[%clk 0:00:03.9]} 42. Nxf7 {[%clk 0:00:20.7]} 42... a5 {[%clk
0:00:02.6]} 43. Nd6 {[%clk 0:00:20.1]} 43... axb4 {[%clk 0:00:02.9]} 44. axb4
{[%clk 0:00:20.4]} 44... Bc6 {[%clk 0:00:03.5]} 45. Ne4 {[%clk 0:00:20.2]} 45...
Bxe4+ {[%clk 0:00:02.1]} 46. Kxe4 {[%clk 0:00:20.4]} 46... Kf8 {[%clk
0:00:02.8]} 47. Bd5 {[%clk 0:00:17.4]} 47... Ke7 {[%clk 0:00:01.7]} 48. Bc6
{[%clk 0:00:17.4]} 48... Bc7 {[%clk 0:00:02.5]} 49. Kd3 {[%clk 0:00:17]} 49...
Bd6 {[%clk 0:00:03.4]} 50. Kc3 {[%clk 0:00:16.7]} 50... e4 {[%clk 0:00:02.3]}
51. Bxb5 {[%clk 0:00:16.2]} 51... Be5+ {[%clk 0:00:03.2]} 52. Kc4 {[%clk
0:00:16.1]} 52... Kd6 {[%clk 0:00:04.1]} 53. Ba6 {[%clk 0:00:15]} 53... Kc6
{[%clk 0:00:03]} 54. Bc8 {[%clk 0:00:14.7]} 54... Bg3 {[%clk 0:00:01.5]} 55. Be6
{[%clk 0:00:14.1]} 55... Bf2 {[%clk 0:00:01.5]} 56. Kd4 {[%clk 0:00:14.4]} 56...
Kd6 {[%clk 0:00:02.2]} 57. Bd5 {[%clk 0:00:13.6]} 57... Be1 {[%clk 0:00:03.1]}
58. b5 {[%clk 0:00:13.1]} 58... Ba5 {[%clk 0:00:03.3]} 59. Kxe4 {[%clk
0:00:13.3]} 59... Bb6 {[%clk 0:00:04.2]} 60. Bc6 {[%clk 0:00:13.6]} 60... Bc5
{[%clk 0:00:04.4]} 61. Kf4 {[%clk 0:00:13.9]} 61... Bb6 {[%clk 0:00:04.8]} 62.
e4 {[%clk 0:00:14.2]} 62... Bc5 {[%clk 0:00:04.1]} 63. e5+ {[%clk 0:00:14.5]}
63... fxe5+ {[%clk 0:00:04.1]} 64. Ke4 {[%clk 0:00:15.2]} 64... Bb6 {[%clk
0:00:04.2]} 65. g5 {[%clk 0:00:15.5]} 65... Bd4 {[%clk 0:00:03.4]} 66. f6 {[%clk
0:00:15.7]} 66... Ke6 {[%clk 0:00:03.8]} 67. Bd5+ {[%clk 0:00:15.2]} 67... Kd6
{[%clk 0:00:03.5]} 68. g6 {[%clk 0:00:15]} 1-0